bitfinex/quotes_BTCUSD_20240927
["timestamp","ask_amount","ask_price","bid_price","bid_amount"]
[1727415882613,1.16209754,65319.0,65318.0,0.09270175]
[1727415883059,1.14809754,65319.0,65318.0,0.09270175]
[1727415883276,1.16209754,65319.0,65318.0,0.000874]
[1727415883485,1.14809754,65319.0,65318.0,0.000874]
[1727415883740,1.18610161,65319.0,65318.0,0.000874]
[1727415884214,1.17210161,65319.0,65318.0,0.09270175]
[1727415884643,1.17210161,65319.0,65318.0,0.000874]
[1727415884856,1.18610161,65319.0,65318.0,0.000874]
[1727415885081,1.14809754,65319.0,65318.0,0.09270175]
[1727415885300,1.14809754,65319.0,65318.0,0.000874]
[1727415885526,1.16209754,65319.0,65318.0,0.09270175]
[1727415885741,1.14809754,65319.0,65318.0,0.09270175]
[1727415886152,1.16209754,65319.0,65318.0,0.09270175]
[1727415886780,1.16209754,65319.0,65318.0,0.000874]
[1727415886997,1.16209754,65319.0,65318.0,0.09270175]
[1727415887627,1.00570948,65319.0,65318.0,0.000874]
[1727415887854,1.00570948,65319.0,65318.0,0.0697377]
[1727415888069,1.00570948,65319.0,65318.0,0.09270175]
[1727415888723,1.00570948,65319.0,65318.0,0.000874]
[1727415888946,1.92110891,65319.0,65318.0,0.000874]
[1727415889184,1.84786354,65319.0,65318.0,0.000874]
[1727415889398,0.306208,65316.0,65312.0,0.04590989]
[1727415889616,0.306201,65317.0,65310.0,0.04590989]
[1727415889617,0.1735,65312.0,65310.0,0.04590989]
[1727415889835,0.80253865,65311.0,65310.0,0.04590989]
[1727415890537,0.326615,65310.0,65309.0,0.04590989]
[1727415890753,0.326615,65310.0,65308.0,0.04590989]
[1727415890754,0.153118,65309.0,65308.0,0.04590989]
[1727415890968,0.153118,65309.0,65307.0,0.06969183]
[1727415890969,0.15312,65308.0,65307.0,0.000827]
[1727415891180,0.72414148,65308.0,65307.0,0.000827]
[1727415891400,0.81189155,65308.0,65307.0,0.000827]
[1727415891810,0.91189155,65308.0,65307.0,0.000827]
[1727415892877,0.92589155,65308.0,65307.0,0.000827]
[1727415893105,1.08227961,65308.0,65307.0,0.000827]
[1727415894153,1.09627961,65308.0,65307.0,0.000827]
[1727415894792,1.08227961,65308.0,65307.0,0.000827]
[1727415895495,2.94686561,65308.0,65307.0,0.000827]
[1727415897857,2.93286561,65308.0,65307.0,0.000827]
[1727415898784,2.94686561,65308.0,65307.0,0.000827]
[1727415900427,2.86791361,65308.0,65307.0,0.000827]
[1727415900889,2.71152555,65308.0,65307.0,0.000827]
[1727415901110,0.66639155,65308.0,65307.0,0.000827]
[1727415901962,0.65239155,65308.0,65307.0,0.000827]
[1727415902176,0.64353916,65308.0,65307.0,0.000827]
[1727415902358,0.65753916,65308.0,65307.0,0.000827]
[1727415902568,0.68154641,65308.0,65307.0,0.000827]
[1727415903263,0.69554641,65308.0,65307.0,0.000827]
[1727415904621,0.69554641,65308.0,65307.0,0.04664662]
[1727415905327,0.67153916,65308.0,65307.0,0.04664662]
[1727415905981,0.67153916,65308.0,65307.0,0.000827]
[1727415907471,0.67153916,65308.0,65307.0,0.04664662]
[1727415907897,0.67153916,65308.0,65307.0,0.000827]
[1727415908114,0.67153916,65308.0,65307.0,0.0466684]
[1727415908346,0.67153916,65308.0,65307.0,0.000827]
[1727415908572,0.67153916,65308.0,65307.0,0.06955644]
[1727415908754,0.67153916,65308.0,65307.0,0.000827]
[1727415908898,0.72046521,65308.0,65307.0,0.000827]
[1727415909315,0.72046521,65308.0,65307.0,0.04667579]
[1727415909520,0.72046521,65308.0,65307.0,0.000827]
[1727415909757,0.72046521,65308.0,65307.0,0.04667579]
[1727415910598,0.81476521,65308.0,65307.0,0.000827]
[1727415911797,0.8387738,65308.0,65307.0,0.000827]
[1727415912279,0.78984775,65308.0,65307.0,0.000827]
[1727415912621,0.78984775,65308.0,65307.0,0.09257821]
[1727415912860,0.78984775,65308.0,65307.0,0.000827]
[1727415913272,0.78984775,65308.0,65307.0,0.09257821]
[1727415913477,0.78984775,65308.0,65307.0,0.0696476]
[1727415913691,0.78984775,65308.0,65307.0,0.09257821]
[1727415914383,0.78984775,65308.0,65307.0,0.000827]
[1727415915045,0.78984775,65308.0,65307.0,0.09257821]
[1727415915245,0.76583916,65308.0,65307.0,0.09257821]
[1727415915470,0.76583916,65308.0,65307.0,0.000827]
[1727415915841,0.76583916,65308.0,65307.0,0.09257821]
[1727415915842,0.92222722,65308.0,65307.0,0.09257821]
[1727415916039,1.00292722,65308.0,65307.0,0.000827]
[1727415916255,2.37698522,65308.0,65307.0,0.000827]
[1727415916460,2.51652122,65308.0,65307.0,0.000827]
[1727415916878,2.13578216,65308.0,65307.0,0.000827]
[1727415917098,2.14978216,65308.0,65307.0,0.000827]
[1727415917813,2.13578216,65308.0,65307.0,0.000827]
[1727415918010,2.14978216,65308.0,65307.0,0.000827]
[1727415918279,2.13578216,65308.0,65307.0,0.000827]
[1727415918505,2.17379126,65308.0,65307.0,0.000827]
[1727415918928,2.15979126,65308.0,65307.0,0.000827]
[1727415919148,2.32190128,65308.0,65307.0,0.000827]
[1727415919582,2.29789218,65308.0,65307.0,0.000827]
[1727415922175,2.32089218,65308.0,65307.0,0.000827]
[1727415922384,2.09355161,65308.0,65307.0,0.000827]
[1727415922593,1.75147161,65308.0,65307.0,0.000827]
[1727415923451,1.67706161,65308.0,65307.0,0.000827]
[1727415925338,1.65305216,65308.0,65307.0,0.000827]
[1727415930001,0.96953916,65308.0,65307.0,0.000827]
[1727415930236,2.65689116,65308.0,65307.0,0.000827]
[1727415932174,1.85598116,65308.0,65307.0,0.000827]
[1727415932405,1.73485216,65308.0,65307.0,0.000827]
[1727415932604,1.75886089,65308.0,65307.0,0.000827]
[1727415934524,0.88984789,65308.0,65307.0,0.000827]
[1727415934795,0.87584789,65308.0,65307.0,0.000827]
[1727415934994,0.87584789,65308.0,65307.0,0.06971598]
[1727415935220,0.83783916,65308.0,65307.0,0.09267897]
[1727415935705,0.85183916,65308.0,65307.0,0.04677949]
[1727415935942,0.83783916,65308.0,65307.0,0.04677949]
[1727415936381,0.98136173,65308.0,65307.0,0.04677949]
[1727415936845,0.96736173,65308.0,65307.0,0.04677949]
[1727415937550,0.98136173,65308.0,65307.0,0.04677949]
[1727415942352,0.98136173,65308.0,65307.0,0.04678484]
[1727415943874,1.00537038,65308.0,65307.0,0.000827]
[1727415944329,1.16175844,65308.0,65307.0,0.000827]
[1727415944789,1.00537038,65308.0,65307.0,0.000827]
[1727415945223,0.98136173,65308.0,65307.0,0.000827]
[1727415947216,1.11449673,65308.0,65307.0,0.000827]
[1727415947661,1.11449673,65308.0,65307.0,0.04679211]
[1727415948327,1.11449673,65308.0,65307.0,0.000827]
[1727415948538,1.27088479,65308.0,65307.0,0.000827]
[1727415951818,1.11449673,65308.0,65307.0,0.000827]
[1727415952031,1.11449673,65308.0,65307.0,0.06978913]
[1727415952710,1.13850561,65308.0,65307.0,0.000827]
[1727415952927,1.13850561,65308.0,65307.0,0.06979209]
[1727415953349,1.29489367,65308.0,65307.0,0.000827]
[1727415953562,1.29489367,65308.0,65307.0,0.06979549]
[1727415954207,1.29489367,65308.0,65307.0,0.06979537]
[1727415954413,1.29489367,65308.0,65307.0,0.06980086]
[1727415954637,1.29489367,65308.0,65307.0,0.09278023]
[1727415955081,1.29489367,65308.0,65307.0,0.000827]
[1727415955287,1.27088479,65308.0,65307.0,0.000827]
[1727415955507,1.27088479,65308.0,65307.0,0.09278023]
[1727415955732,1.27088479,65308.0,65307.0,0.000827]
[1727415956881,1.29388479,65308.0,65307.0,0.09278023]
[1727415957096,1.29388479,65308.0,65307.0,0.06981191]
[1727415958011,1.27088479,65308.0,65307.0,0.06981525]
[1727415958243,1.27088479,65308.0,65307.0,0.000827]
[1727415958467,1.294894,65308.0,65307.0,0.000827]
[1727415959346,1.27088479,65308.0,65307.0,0.000827]
[1727415960243,1.43238479,65308.0,65307.0,0.09281134]
[1727415960442,1.27088479,65308.0,65307.0,0.09281134]
[1727415961270,1.27088479,65308.0,65307.0,0.000827]
[1727415962445,0.99897416,65308.0,65307.0,0.000827]
[1727415962675,0.79554808,65308.0,65307.0,0.000827]
[1727415962899,0.79554808,65308.0,65307.0,0.11588779]
[1727415963119,0.79554808,65308.0,65307.0,0.000827]
[1727415965211,0.77153916,65308.0,65307.0,0.000827]
[1727415967641,0.86253916,65308.0,65307.0,0.000827]
[1727415974042,0.88654821,65308.0,65307.0,0.000827]
[1727415975129,0.86253916,65308.0,65307.0,0.000827]
[1727415977070,0.86253916,65308.0,65307.0,0.11588693]
[1727415982811,0.85905195,65308.0,65307.0,0.11588693]
[1727415983143,0.85905195,65308.0,65307.0,0.000827]
[1727415983363,1.01544001,65308.0,65307.0,0.000827]
[1727415985656,0.76805195,65308.0,65307.0,0.000827]
[1727415986022,0.77213787,65308.0,65307.0,0.000827]
[1727415986445,0.76805195,65308.0,65307.0,0.000827]
[1727415986645,0.88506111,65308.0,65307.0,0.000827]
[1727415987768,0.86105195,65308.0,65307.0,0.000827]
[1727415987962,1.01744001,65308.0,65307.0,0.000827]
[1727415992399,1.01744001,65308.0,65307.0,0.09289132]
[1727415992611,1.01744001,65308.0,65307.0,0.000827]
[1727415993263,0.86105195,65308.0,65307.0,0.000827]
[1727415993474,0.86514204,65308.0,65307.0,0.11591111]
[1727415993646,0.86105508,65308.0,65307.0,0.11591111]
[1727415994504,0.86514204,65308.0,65307.0,0.11591111]
[1727415994676,0.86105508,65308.0,65307.0,0.11591111]
[1727415994938,1.01744314,65308.0,65307.0,0.11591111]
[1727415995282,1.04145222,65308.0,65307.0,0.11591111]
[1727415995489,1.04145222,65308.0,65307.0,0.000827]
[1727415995790,1.04145222,65308.0,65307.0,0.11591111]
[1727415996017,1.04145222,65308.0,65307.0,0.09289228]
[1727415996474,1.01744314,65308.0,65307.0,0.09289228]
[1727415996932,1.01744314,65308.0,65307.0,0.09289059]
[1727415997671,1.01744314,65308.0,65307.0,0.000827]
[1727415997902,1.01744314,65308.0,65307.0,0.09288676]
[1727415998350,1.01744314,65308.0,65307.0,0.09288741]
[1727415998576,1.01744314,65308.0,65307.0,0.000827]
[1727415998792,1.01744314,65308.0,65307.0,0.09288456]
[1727415999502,1.0215301,65308.0,65307.0,0.09288456]
[1727416000381,1.0215301,65308.0,65307.0,0.09288159]
[1727416000615,1.0215301,65308.0,65307.0,0.09288188]
[1727416000848,1.0215301,65308.0,65307.0,0.000827]
[1727416003992,1.04553962,65308.0,65307.0,0.000827]
[1727416004846,0.88915156,65308.0,65307.0,0.000827]
[1727416005073,0.79615156,65308.0,65307.0,0.000827]
[1727416005268,0.77214204,65308.0,65307.0,0.000827]
[1727416005417,0.77214204,65308.0,65307.0,0.11589909]
[1727416005885,0.77214204,65308.0,65307.0,0.000827]
[1727416008584,0.79615079,65308.0,65307.0,0.000827]
[1727416009487,0.77214204,65308.0,65307.0,0.000827]
[1727416010044,0.77214204,65308.0,65307.0,0.11585623]
[1727416011125,0.77214204,65308.0,65307.0,0.000827]
[1727416011600,0.77214204,65308.0,65307.0,0.11585077]
[1727416012570,0.77214204,65308.0,65307.0,0.11585247]
[1727416012802,0.7961507,65308.0,65307.0,0.11585247]
[1727416015187,0.77214204,65308.0,65307.0,0.11585247]
[1727416016789,0.77214204,65308.0,65307.0,0.09284774]
[1727416017527,0.77124204,65308.0,65307.0,0.09284774]
[1727416017758,0.77124204,65308.0,65307.0,0.000827]
[1727416017976,0.77114204,65308.0,65307.0,0.000827]
[1727416018198,0.77074204,65308.0,65307.0,0.000827]
[1727416018418,0.77024204,65308.0,65307.0,0.000827]
[1727416018864,0.77014204,65308.0,65307.0,0.000827]
[1727416019100,0.76954204,65308.0,65307.0,0.000827]
[1727416019341,0.76944204,65308.0,65307.0,0.000827]
[1727416020239,0.76944204,65308.0,65307.0,0.11584511]
[1727416020980,0.76944204,65308.0,65307.0,0.000827]
[1727416021177,0.76944204,65308.0,65307.0,0.1158452]
[1727416021429,0.76944204,65308.0,65307.0,0.11584478]
[1727416021880,0.76944204,65308.0,65307.0,0.000827]
[1727416022996,0.79345099,65308.0,65307.0,0.000827]
[1727416023622,0.79345099,65308.0,65307.0,0.11583685]
[1727416023838,0.79345099,65308.0,65307.0,0.11583999]
[1727416024479,0.79345099,65308.0,65307.0,0.000827]
[1727416024691,0.79510499,65308.0,65307.0,0.000827]
[1727416025402,0.77109604,65308.0,65307.0,0.11583589]
[1727416025787,0.77109604,65308.0,65307.0,0.000827]
[1727416027178,0.77109604,65308.0,65307.0,0.11583285]
[1727416028329,0.77109604,65308.0,65307.0,0.000827]
[1727416031160,0.67109604,65308.0,65307.0,0.11634957]
[1727416032016,0.6543877,65308.0,65307.0,0.11634957]
[1727416032653,0.66700908,65308.0,65307.0,0.11634957]
[1727416032875,0.63697782,65308.0,65307.0,0.11634957]
[1727416033094,0.65097782,65308.0,65307.0,0.11634957]
[1727416033306,0.66497782,65308.0,65307.0,0.11634957]
[1727416036622,0.66353749,65308.0,65307.0,0.11634957]
[1727416037623,0.66353749,65308.0,65307.0,0.25418207]
[1727416040832,0.66843161,65308.0,65307.0,0.25418207]
[1727416042416,0.66843161,65308.0,65307.0,0.13862317]
[1727416042857,0.66843161,65308.0,65307.0,0.000827]
[1727416043503,0.66843161,65308.0,65307.0,0.13862317]
[1727416043729,0.51801161,65308.0,65307.0,0.000827]
[1727416043963,0.67113161,65308.0,65307.0,0.000827]
[1727416045357,0.76543161,65308.0,65307.0,0.11565666]
[1727416045608,0.76543161,65308.0,65307.0,0.09269341]
[1727416045854,0.76543161,65308.0,65307.0,0.000827]
[1727416046795,0.74993013,65308.0,65307.0,0.000827]
[1727416047734,0.74993013,65308.0,65307.0,0.09269341]
[1727416048053,0.74993013,65308.0,65307.0,0.000827]
[1727416048530,0.65563013,65308.0,65307.0,0.000827]
[1727416048794,0.50251013,65308.0,65307.0,0.000827]
[1727416049513,0.48851013,65308.0,65307.0,0.000827]
[1727416050275,0.48851013,65308.0,65307.0,0.153949]
[1727416050530,0.48851013,65308.0,65307.0,0.000827]
[1727416051020,0.50251013,65308.0,65307.0,0.000827]
[1727416051759,0.50251013,65308.0,65307.0,0.153949]
[1727416052012,0.49186913,65308.0,65307.0,0.000827]
[1727416053694,0.49186913,65308.0,65307.0,0.153949]
[1727416053912,0.49186913,65308.0,65307.0,0.000827]
[1727416054169,0.48122813,65308.0,65307.0,0.153949]
[1727416056586,0.48122813,65308.0,65307.0,0.000827]
[1727416056822,0.47058713,65308.0,65307.0,0.000827]
[1727416057326,0.47058713,65308.0,65307.0,0.153949]
[1727416057566,0.47058713,65308.0,65307.0,0.000827]
[1727416058285,0.47058713,65308.0,65307.0,0.153949]
[1727416058739,0.47058713,65308.0,65307.0,0.248649]
[1727416059210,0.45994613,65308.0,65307.0,0.45211366]
[1727416059457,0.45994613,65308.0,65307.0,0.248649]
[1727416059681,0.44594613,65308.0,65307.0,0.45196203]
[1727416059909,0.44594613,65308.0,65307.0,0.248649]
[1727416060131,0.45794613,65308.0,65307.0,0.45196133]
[1727416060354,0.44394613,65308.0,65307.0,0.248649]
[1727416060610,0.43194613,65308.0,65307.0,0.4519506]
[1727416060834,0.45294613,65308.0,65307.0,0.4519506]
[1727416061544,0.45294613,65308.0,65307.0,0.45195059]
[1727416062196,0.44230548,65308.0,65307.0,0.45195059]
[1727416063096,0.44230548,65308.0,65307.0,0.45193845]
[1727416063325,0.44230548,65308.0,65307.0,0.20411645]
[1727416063542,0.44230548,65308.0,65307.0,0.000827]
[1727416063543,0.59542548,65308.0,65307.0,0.000827]
[1727416064674,0.58478482,65308.0,65307.0,0.000827]
[1727416066275,0.43166482,65308.0,65307.0,0.000827]
[1727416067145,0.42102416,65308.0,65307.0,0.000827]
[1727416069611,0.42102416,65308.0,65307.0,0.20411645]
[1727416069825,0.4103835,65308.0,65307.0,0.20411645]
[1727416071414,0.40164149,65308.0,65307.0,0.20411645]
[1727416071625,0.41043333,65308.0,65307.0,0.20411645]
[1727416072290,0.39979267,65308.0,65307.0,0.20411645]
[1727416074668,0.38915201,65308.0,65307.0,0.000827]
[1727416074901,0.38915201,65308.0,65307.0,0.153949]
[1727416075578,0.38915201,65308.0,65307.0,0.000827]
[1727416076705,0.54227201,65308.0,65307.0,0.000827]
[1727416076920,0.63977201,65308.0,65307.0,0.000827]
[1727416077555,0.62877201,65308.0,65307.0,0.000827]
[1727416078009,0.64077201,65308.0,65307.0,0.000827]
[1727416078831,0.48765201,65308.0,65307.0,0.000827]
[1727416079072,0.46565201,65308.0,65307.0,0.000827]
[1727416079282,0.47665201,65308.0,65307.0,0.000827]
[1727416079508,0.39015201,65308.0,65307.0,0.153949]
[1727416082409,0.39015201,65308.0,65307.0,0.35743188]
[1727416082853,0.39015201,65308.0,65307.0,0.153949]
[1727416084414,0.39015201,65308.0,65307.0,0.000827]
[1727416086178,0.39015201,65308.0,65307.0,0.153949]
[1727416086416,0.39015201,65308.0,65307.0,0.35743188]
[1727416086751,0.39015201,65308.0,65307.0,0.153949]
[1727416087638,0.39015201,65308.0,65307.0,0.352749]
[1727416088124,0.15576385,65308.0,65307.0,0.55623679]
[1727416088361,0.15576385,65308.0,65307.0,0.61003694]
[1727416088362,0.14207789,65308.0,65307.0,0.61003694]
[1727416089042,0.13107789,65308.0,65307.0,0.61003694]
[1727416089284,0.13707789,65308.0,65307.0,0.61003694]
[1727416089498,0.12607789,65308.0,65307.0,0.61003694]
[1727416089698,0.13207789,65308.0,65307.0,0.61003694]
[1727416089918,0.13307789,65308.0,65307.0,0.61203694]
[1727416090127,0.12107789,65308.0,65307.0,0.61203694]
[1727416090769,0.12207789,65308.0,65307.0,0.61303694]
[1727416093380,0.12207789,65308.0,65307.0,0.62463035]
[1727416095848,0.12207789,65308.0,65307.0,0.74015292]
[1727416096554,0.12207789,65308.0,65307.0,0.62263035]
[1727416096798,0.12207789,65308.0,65307.0,0.45357157]
[1727416097240,0.12207789,65308.0,65307.0,0.45257157]
[1727416097241,0.12107789,65308.0,65307.0,0.45257157]
[1727416097476,0.12107789,65308.0,65307.0,0.45157157]
[1727416097719,0.12107789,65308.0,65307.0,0.45357157]
[1727416097973,0.12107789,65308.0,65307.0,0.47657157]
[1727416098664,0.12007789,65308.0,65307.0,0.47557157]
[1727416099098,0.12107789,65308.0,65307.0,0.47457157]
[1727416099523,0.12207789,65308.0,65307.0,0.47657157]
[1727416101326,0.12207789,65308.0,65307.0,0.78670878]
[1727416101835,0.12207789,65308.0,65307.0,0.63185951]
[1727416102071,0.12207789,65308.0,65307.0,0.78670878]
[1727416102964,0.12207789,65308.0,65307.0,0.63185951]
[1727416103185,0.12207789,65308.0,65307.0,0.78865968]
[1727416103635,0.12207789,65308.0,65307.0,0.63385951]
[1727416104281,0.12207789,65308.0,65307.0,0.63185951]
[1727416104703,0.12207789,65308.0,65307.0,0.78664866]
[1727416104919,0.12207789,65308.0,65307.0,0.78864866]
[1727416105119,0.12207789,65308.0,65307.0,0.63385951]
[1727416105643,0.12207789,65308.0,65307.0,0.78864044]
[1727416105860,0.12207789,65308.0,65307.0,0.63385951]
[1727416106082,0.12207789,65308.0,65307.0,0.63185951]
[1727416106771,0.12207789,65308.0,65307.0,0.78663364]
[1727416106984,0.12207789,65308.0,65307.0,0.63185951]
[1727416108024,0.12207789,65308.0,65307.0,0.63385951]
[1727416108250,0.12207789,65308.0,65307.0,0.78863364]
[1727416108955,0.12207789,65308.0,65307.0,0.63385951]
[1727416110252,0.12207789,65308.0,65307.0,0.78863364]
[1727416110710,0.12207789,65308.0,65307.0,0.63385951]
[1727416112102,0.12207789,65308.0,65307.0,0.78663364]
[1727416112752,0.12207789,65308.0,65307.0,0.87753364]
[1727416112968,0.12207789,65308.0,65307.0,0.87953364]
[1727416113315,0.12207789,65308.0,65307.0,0.87950346]
[1727416115416,0.12207789,65308.0,65307.0,0.87750346]
[1727416116488,0.12207789,65308.0,65307.0,0.87950346]
[1727416117438,0.23128743,65318.0,65307.0,0.77988976]
[1727416117670,0.23128743,65318.0,65317.0,0.29162157]
[1727416118026,0.001654,65318.0,65317.0,0.29162157]
[1727416118254,0.460944,65318.0,65317.0,0.29162157]
[1727416118500,0.460944,65318.0,65317.0,0.62890951]
[1727416118714,0.48120883,65318.0,65317.0,0.62890951]
[1727416119160,0.48020883,65318.0,65317.0,0.62890951]
[1727416119606,0.49120883,65318.0,65317.0,0.62890951]
[1727416120095,0.48120883,65318.0,65317.0,0.62890951]
[1727416120342,0.48220883,65318.0,65317.0,0.63090951]
[1727416120812,0.47620883,65318.0,65317.0,0.63290951]
[1727416121053,0.47720883,65318.0,65317.0,0.63790951]
[1727416121278,0.47620883,65318.0,65317.0,0.63590951]
[1727416121503,0.47620883,65318.0,65317.0,0.63090951]
[1727416121504,0.47520883,65318.0,65317.0,0.63090951]
[1727416121952,0.47620883,65318.0,65317.0,0.63590951]
[1727416122633,0.47720883,65318.0,65317.0,0.64190951]
[1727416122865,0.47620883,65318.0,65317.0,0.63590951]
[1727416123051,0.47620883,65318.0,65317.0,0.64190951]
[1727416123052,0.47720883,65318.0,65317.0,0.64190951]
[1727416127321,0.47481308,65318.0,65317.0,0.64190951]
[1727416127545,0.47481308,65318.0,65317.0,0.69705685]
[1727416127756,0.47481308,65318.0,65317.0,0.85176217]
[1727416128200,0.47481308,65318.0,65317.0,0.61505685]
[1727416128633,0.47481308,65318.0,65317.0,0.55990951]
[1727416128842,0.47481308,65318.0,65317.0,0.61505279]
[1727416129040,0.47481308,65318.0,65317.0,0.7146263]
[1727416129253,0.47481308,65318.0,65317.0,0.55990951]
[1727416129461,0.47481308,65318.0,65317.0,0.55790951]
[1727416129669,0.47481308,65318.0,65317.0,0.287099]
[1727416129895,0.47481308,65318.0,65317.0,0.55736559]
[1727416131373,0.47481308,65318.0,65317.0,0.40262157]
[1727416137593,0.47481308,65318.0,65317.0,0.40462157]
[1727416138426,0.47481308,65318.0,65317.0,0.40262157]
[1727416139244,0.47481308,65318.0,65317.0,0.40462157]
[1727416139464,0.47481308,65318.0,65317.0,0.64190951]
[1727416140363,0.47481308,65318.0,65317.0,0.52638694]
[1727416140578,0.47481308,65318.0,65317.0,0.63990951]
[1727416142271,0.47481308,65318.0,65317.0,0.64190951]
[1727416143403,0.47481308,65318.0,65317.0,0.69708006]
[1727416147200,0.47481308,65318.0,65317.0,0.61508006]
[1727416149132,0.24042492,65318.0,65317.0,0.73980951]
[1727416149378,0.24042492,65318.0,65317.0,0.79500095]
[1727416149653,0.22855584,65318.0,65317.0,0.79500095]
[1727416149863,0.22755584,65318.0,65317.0,0.80173904]
[1727416150111,0.22755584,65318.0,65317.0,0.80073904]
[1727416150565,0.22855584,65318.0,65317.0,0.96160256]
[1727416150799,0.22655584,65318.0,65317.0,0.95060248]
[1727416151019,0.22755584,65318.0,65317.0,0.95660248]
[1727416151238,0.22755584,65318.0,65317.0,0.80173904]
[1727416151458,0.22755584,65318.0,65317.0,0.95660248]
[1727416151701,0.001654,65321.0,65320.0,0.39361457]
[1727416151923,0.001654,65321.0,65320.0,0.54890251]
[1727416153398,0.002654,65321.0,65320.0,0.56290251]
[1727416154025,0.003654,65321.0,65320.0,0.57690251]
[1727416154556,0.001656,65322.0,65321.0,0.15509]
[1727416154799,0.32194749,65338.0,65332.0,0.002]
[1727416155029,0.32194749,65338.0,65337.0,0.39157457]
[1727416155030,0.0923,65338.0,65337.0,0.39157457]
[1727416155551,0.1673,65342.0,65338.0,0.27605]
[1727416156002,0.0923,65342.0,65338.0,0.27911043]
[1727416156895,0.0923,65342.0,65338.0,0.43439837]
[1727416157122,0.0923,65342.0,65338.0,0.4427494]
[1727416157559,0.0923,65342.0,65338.0,0.4507494]
[1727416158548,0.0923,65342.0,65338.0,0.65377306]
[1727416158806,0.001654,65348.0,65338.0,0.4577494]
[1727416159035,0.0923,65346.0,65338.0,0.4577494]
[1727416159730,0.001654,65348.0,65338.0,0.4577494]
[1727416159945,0.001654,65348.0,65338.0,0.4597494]
[1727416161476,0.001654,65348.0,65338.0,0.44833794]
[1727416162612,0.001654,65348.0,65346.0,0.39355357]
[1727416162832,0.001654,65348.0,65346.0,0.54884151]
[1727416163054,0.01427089,65347.0,65346.0,0.54884151]
[1727416163350,0.001654,65347.0,65346.0,0.54884151]
[1727416163774,0.001654,65347.0,65346.0,0.62884151]
[1727416164213,0.001654,65348.0,65347.0,0.278029]
[1727416164436,0.001654,65348.0,65347.0,0.43637664]
[1727416164649,0.001656,65350.0,65349.0,0.278024]
[1727416164862,0.001656,65350.0,65349.0,0.55189409]
[1727416165080,0.23122968,65358.0,65357.0,0.278005]
[1727416165343,0.23122968,65358.0,65357.0,0.55187505]
[1727416165566,0.001656,65358.0,65357.0,0.62881551]
[1727416166676,0.001656,65358.0,65357.0,0.78314175]
[1727416166907,0.001654,65367.0,65366.0,0.277984]
[1727416167163,0.001654,65367.0,65366.0,0.54879451]
[1727416167393,0.01474582,65367.0,65366.0,0.54879451]
[1727416167625,0.001654,65367.0,65366.0,0.54879451]
[1727416168821,0.001654,65367.0,65366.0,0.55879451]
[1727416169516,0.001654,65367.0,65366.0,0.57079451]
[1727416169818,0.0923,65376.0,65375.0,0.152963]
[1727416170046,0.0923,65376.0,65375.0,0.54677351]
[1727416170267,0.10556317,65376.0,65375.0,0.54677351]
[1727416170745,0.0923,65376.0,65375.0,0.54677351]
[1727416171196,0.075,65380.0,65379.0,0.252954]
[1727416171437,0.0946,65381.0,65380.0,0.277951]
[1727416171683,0.0946,65381.0,65379.0,0.27386886]
[1727416171684,0.180909,65380.0,65379.0,0.152954]
[1727416172140,0.1941753,65380.0,65379.0,0.152954]
[1727416172591,0.1951753,65380.0,65379.0,0.26847657]
[1727416172819,0.181909,65380.0,65379.0,0.26847657]
[1727416173051,0.181909,65380.0,65379.0,0.42376451]
[1727416173515,0.181909,65380.0,65379.0,0.63250601]
[1727416173739,0.181909,65380.0,65379.0,0.75550601]
[1727416174012,0.180909,65380.0,65379.0,0.75550601]
[1727416174256,0.001654,65384.0,65383.0,0.275944]
[1727416174498,0.001654,65384.0,65383.0,0.74816067]
[1727416174959,0.460484,65384.0,65383.0,0.74816067]
[1727416175187,0.47375345,65384.0,65383.0,0.74816067]
[1727416175421,0.47375345,65384.0,65383.0,0.54675451]
[1727416175642,0.47375345,65384.0,65383.0,0.54775451]
[1727416175900,0.47375345,65384.0,65383.0,0.55075451]
[1727416177371,0.47375345,65384.0,65383.0,0.62975451]
[1727416177641,0.20873129,65384.0,65383.0,0.72585451]
[1727416177866,0.0781,65404.0,65383.0,0.72585451]
[1727416177867,0.91753641,65410.0,65404.0,0.275895]
[1727416178094,0.91753641,65410.0,65404.0,0.52755747]
[1727416178320,0.459507,65405.0,65404.0,0.39141757]
[1727416178548,0.459507,65405.0,65404.0,0.45124664]
[1727416180253,0.459507,65405.0,65404.0,0.46524664]
[1727416180730,0.459507,65405.0,65404.0,0.47724664]
[1727416184061,0.459507,65405.0,65404.0,0.278895]
[1727416185029,0.459507,65405.0,65404.0,0.266895]
[1727416185260,0.459507,65405.0,65404.0,0.270895]
[1727416185484,0.46383109,65405.0,65404.0,0.45790344]
[1727416185706,0.46383109,65405.0,65404.0,0.46390344]
[1727416185938,0.46383109,65405.0,65404.0,0.256895]
[1727416186465,0.46383109,65405.0,65404.0,0.266895]
[1727416187163,0.46383109,65405.0,65404.0,0.46336545]
[1727416187378,0.46383109,65405.0,65404.0,0.262895]
[1727416187607,0.46383109,65405.0,65404.0,0.271895]
[1727416189096,0.27238406,65405.0,65404.0,0.271895]
[1727416189510,0.27238406,65405.0,65404.0,0.373895]
[1727416189713,0.27238406,65405.0,65404.0,0.62553458]
[1727416190091,0.26805997,65405.0,65404.0,0.62553458]
[1727416190321,0.26805997,65405.0,65404.0,0.61653458]
[1727416190764,0.26805997,65405.0,65404.0,0.62553458]
[1727416191260,0.26805997,65405.0,65404.0,0.61653458]
[1727416191504,0.26888697,65405.0,65404.0,0.62653458]
[1727416191725,0.26888697,65405.0,65404.0,0.61653458]
[1727416192172,0.26888697,65405.0,65404.0,0.62853458]
[1727416194428,0.26888697,65405.0,65404.0,0.78127415]
[1727416195369,0.26888697,65405.0,65404.0,0.62853458]
[1727416195804,0.26888697,65405.0,65404.0,0.64109937]
[1727416196026,0.14639497,65405.0,65404.0,0.72009937]
[1727416196251,0.22934202,65417.0,65412.0,0.252877]
[1727416196468,0.22934202,65417.0,65412.0,0.61908137]
[1727416196706,0.47076538,65413.0,65412.0,0.61908137]
[1727416196943,0.459457,65413.0,65412.0,0.61908137]
[1727416197166,0.47076538,65413.0,65412.0,0.60651658]
[1727416197358,0.47076538,65413.0,65412.0,0.61908137]
[1727416198053,0.47076538,65413.0,65412.0,0.62808137]
[1727416198243,0.47076538,65413.0,65412.0,0.61551658]
[1727416198495,0.47076538,65413.0,65412.0,0.62811374]
[1727416198935,0.47076538,65413.0,65412.0,0.64211374]
[1727416199155,0.47076538,65413.0,65412.0,0.45416494]
[1727416199564,0.47076538,65413.0,65412.0,0.61084544]
[1727416199839,0.47076538,65413.0,65412.0,0.4697621]
[1727416200263,0.47076538,65413.0,65412.0,0.44516494]
[1727416200752,0.47076538,65413.0,65412.0,0.61584544]
[1727416200959,0.47076538,65413.0,65412.0,0.60184544]